bitfinex-derivatives/quotes_BTCF0:USTF0_20250308
["timestamp","ask_amount","ask_price","bid_price","bid_amount"]
[1741457171814,0.20669041,85998.0,85997.0,0.21579362]
[1741457173513,0.20669041,85998.0,85997.0,0.15776542]
[1741457174617,0.11089041,85998.0,85997.0,0.15776542]
[1741457176526,0.11089041,85998.0,85997.0,0.09973722]
[1741457176825,0.29570091,85998.0,85997.0,0.19633722]
[1741457178023,0.15528548,85998.0,85997.0,0.19633722]
[1741457178720,0.0621515,85998.0,85997.0,0.19633722]
[1741457179519,0.01227739,85998.0,85997.0,0.19633722]
[1741457179715,0.01227739,85998.0,85997.0,0.13830902]
[1741457179919,0.24421367,86008.0,86007.0,0.0930417]
[1741457179920,0.20260367,86008.0,86007.0,0.0930417]
[1741457180118,0.16417367,86008.0,86007.0,0.4538417]
[1741457180318,0.25143169,86014.0,86007.0,0.3608]
[1741457180620,0.25143169,86014.0,86013.0,0.0930352]
[1741457182617,0.25143169,86014.0,86013.0,0.035007]
[1741457182818,0.25143169,86014.0,86013.0,0.0930352]
[1741457183026,0.25143169,86014.0,86013.0,0.0940352]
[1741457183227,0.2038,86016.0,86013.0,0.0940352]
[1741457183424,0.2038,86016.0,86015.0,0.093033]
[1741457185426,0.2038,86016.0,86014.0,0.1028]
[1741457185629,0.093033,86015.0,86014.0,0.0447718]
[1741457185927,0.0960341,86014.0,86013.0,0.002]
[1741457186126,0.2912341,86014.0,86013.0,0.002]
[1741457186629,0.2882341,86014.0,86013.0,0.001]
[1741457186930,0.2872341,86014.0,86013.0,0.001]
[1741457187921,0.1942,86014.0,86000.0,0.0930492]
[1741457188131,0.0930438,86005.0,86002.0,0.0930466]
[1741457188726,0.0930438,86005.0,86000.0,0.0930492]
[1741457189029,0.1003,86004.0,86000.0,0.0930492]
[1741457189227,0.0993,86004.0,86000.0,0.0930492]
[1741457189424,0.0983,86004.0,86000.0,0.0930492]
[1741457189727,0.0930463,86003.0,86000.0,0.0930492]
[1741457189927,0.0983,86004.0,86002.0,0.0930462]
[1741457190227,0.002,86005.0,86003.0,0.0930451]
[1741457190424,0.002,86005.0,86004.0,0.0930449]
[1741457190622,0.20897484,86019.0,86003.0,0.4538451]
[1741457190824,0.20897484,86019.0,86013.0,0.0930352]
[1741457191128,0.20897484,86015.0,86013.0,0.0930352]
[1741457191930,0.20897484,86015.0,86014.0,0.0930341]
[1741457192632,0.30677484,86015.0,86014.0,0.0930341]
[1741457193025,0.30677484,86015.0,86014.0,0.1956341]
[1741457194433,0.31077484,86015.0,86014.0,0.1966341]
[1741457194826,0.31077484,86015.0,86014.0,0.1036]
[1741457195024,0.31077484,86015.0,86014.0,0.1966341]
[1741457195831,0.1038,86015.0,86014.0,0.1976341]
[1741457197829,0.1038,86015.0,86014.0,0.1396059]
[1741457199638,0.27757746,86015.0,86014.0,0.1396059]
[1741457199935,0.27757746,86015.0,86014.0,0.2414059]
[1741457200829,0.27757746,86015.0,86014.0,0.1833777]
[1741457202528,0.08104598,86020.0,86014.0,0.1028]
[1741457202836,0.05740597,86020.0,86019.0,0.0930287]
[1741457203037,0.03390597,86020.0,86019.0,0.0930287]
[1741457203943,0.03990597,86020.0,86018.0,0.1014]
[1741457204139,0.03990597,86020.0,86019.0,0.0963]
[1741457204325,0.03990597,86020.0,86019.0,0.2865287]
[1741457204637,0.006,86020.0,86019.0,0.2865287]
[1741457205132,0.00017441,86022.0,86019.0,0.1945]
[1741457205336,0.00017441,86022.0,86021.0,0.4538265]
[1741457205725,0.00017441,86022.0,86021.0,0.5510265]
[1741457206939,0.00017441,86022.0,86021.0,0.4929983]
[1741457207233,0.24368818,86028.0,86021.0,0.4929983]
[1741457207439,0.20805818,86028.0,86027.0,0.09302]
[1741457207638,0.20805818,86028.0,86027.0,0.17694]
[1741457208234,0.17995818,86028.0,86027.0,0.17694]
[1741457208430,0.17995818,86028.0,86027.0,0.36984]
[1741457208825,0.14135818,86028.0,86027.0,0.37084]
[1741457209540,0.21074295,86033.0,86032.0,0.0930146]
[1741457209840,0.21074295,86033.0,86032.0,0.14081357]
[1741457210030,0.21074295,86033.0,86032.0,0.04779897]
[1741457210333,0.21074295,86033.0,86032.0,0.2035]
[1741457210839,0.21074295,86033.0,86032.0,0.2965146]
[1741457211544,0.21074295,86033.0,86032.0,0.2035]
[1741457212543,0.40324295,86033.0,86032.0,0.2965146]
[1741457212933,0.40324295,86033.0,86032.0,0.2394864]
[1741457213333,0.40324295,86033.0,86032.0,0.28836445]
[1741457213537,0.29918138,86033.0,86032.0,0.28836445]
[1741457213737,0.29918138,86033.0,86032.0,0.19534985]
[1741457213932,0.29918138,86033.0,86032.0,0.04987805]
[1741457214543,0.29918138,86033.0,86032.0,0.14777805]
[1741457215945,0.29918138,86033.0,86032.0,0.08874985]
[1741457216137,0.29918138,86033.0,86031.0,0.3608]
[1741457216336,0.29918138,86033.0,86032.0,0.0946]
[1741457217539,0.29918138,86033.0,86032.0,0.1876146]
[1741457218451,0.2992695,86033.0,86032.0,0.1876146]
[1741457218651,0.2992695,86033.0,86032.0,0.23631845]
[1741457218851,0.2992695,86033.0,86032.0,0.14330385]
[1741457219054,0.2992695,86033.0,86032.0,0.08527565]
[1741457219258,0.2992695,86033.0,86032.0,0.18877565]
[1741457219551,0.2992695,86033.0,86032.0,0.28179025]
[1741457220353,0.2992695,86033.0,86032.0,0.15220385]
[1741457220547,0.2992695,86033.0,86032.0,0.24521845]
[1741457221547,0.19433229,86033.0,86032.0,0.24521845]
[1741457222254,0.19433229,86033.0,86032.0,0.18719025]
[1741457222455,0.19433229,86033.0,86032.0,0.29079025]
[1741457222752,0.19433229,86033.0,86032.0,0.33986669]
[1741457223154,0.09673229,86033.0,86032.0,0.33986669]
[1741457223852,0.09673229,86033.0,86032.0,0.34086669]
[1741457225046,0.09673229,86033.0,86032.0,0.28283849]
[1741457228255,0.30574105,86033.0,86032.0,0.22481029]
[1741457229659,0.30574105,86033.0,86032.0,0.58561029]
[1741457230653,0.21084105,86033.0,86032.0,0.58561029]
[1741457231246,0.21084105,86033.0,86032.0,0.60749104]
[1741457233656,0.18701397,86033.0,86032.0,0.60749104]
[1741457234161,0.18701397,86033.0,86032.0,0.54946284]
[1741457234863,0.18701397,86033.0,86032.0,0.55246284]
[1741457236349,0.18701397,86033.0,86032.0,0.55546284]
[1741457236753,0.18701397,86033.0,86032.0,0.19466284]
[1741457237055,0.18701397,86033.0,86032.0,0.55246284]
[1741457237255,0.18701397,86033.0,86032.0,0.49343464]
[1741457240062,0.24384355,86045.0,86044.0,0.0930017]
[1741457240255,0.24384355,86045.0,86042.0,0.1302615]
[1741457240457,0.24384355,86045.0,86044.0,0.0930017]
[1741457240856,0.31295852,86046.0,86044.0,0.0930017]
[1741457241057,0.31295852,86046.0,86043.0,0.1036]
[1741457241058,0.31295852,86046.0,86045.0,0.0930006]
[1741457243161,0.41895852,86046.0,86045.0,0.0930006]
[1741457243468,0.41895852,86046.0,86043.0,0.1036]
[1741457243668,0.41895852,86046.0,86043.0,0.11236471]
[1741457244078,0.41895852,86046.0,86045.0,0.004]
[1741457244758,0.41895852,86046.0,86045.0,0.002]
[1741457244974,0.41895852,86046.0,86045.0,0.0930006]
[1741457245355,0.106,86046.0,86045.0,0.0930006]
[1741457246360,0.106,86046.0,86043.0,0.16186591]
[1741457246557,0.0964,86050.0,86043.0,0.16186591]
[1741457246558,0.06420338,86050.0,86049.0,0.0929963]
[1741457246869,0.24353991,86058.0,86057.0,0.0929876]
[1741457247667,0.24353991,86058.0,86057.0,0.4537876]
[1741457248573,0.00060001,86066.0,86063.0,0.0929803]
[1741457248872,0.101,86068.0,86065.0,0.3608]
[1741457249464,0.101,86068.0,86065.0,0.3027718]
[1741457249768,0.096,86067.0,86065.0,0.3027718]
[1741457249970,0.1972,86067.0,86065.0,0.3027718]
[1741457250267,0.1972,86067.0,86065.0,0.3957499]
[1741457250461,0.1972,86067.0,86066.0,0.0929779]
[1741457254471,0.1972,86067.0,86066.0,0.1975779]
[1741457255974,0.1972,86067.0,86066.0,0.1046]
[1741457256176,0.1972,86067.0,86065.0,0.40917035]
[1741457256967,0.1972,86067.0,86065.0,0.50214915]
[1741457257168,0.1972,86067.0,86065.0,0.60354915]
[1741457257374,0.1972,86067.0,86065.0,0.24274915]
[1741457257575,0.1972,86067.0,86065.0,0.51057035]
[1741457257776,0.1972,86067.0,86066.0,0.0929779]
[1741457258281,0.1972,86067.0,86066.0,0.1943779]
[1741457258475,0.1972,86067.0,86066.0,0.0433718]
[1741457258679,0.1972,86067.0,86065.0,0.50214915]
[1741457258982,0.1972,86067.0,86065.0,0.04837035]
[1741457259167,0.1972,86067.0,86063.0,0.0929805]
[1741457259372,0.1972,86067.0,86062.0,0.3608]
[1741457259683,0.1972,86067.0,86066.0,0.0929779]
[1741457260070,0.1972,86067.0,86066.0,0.0981]
[1741457261588,0.1972,86067.0,86066.0,0.0400718]
[1741457263482,0.1972,86067.0,86066.0,0.1330497]
[1741457264482,0.1972,86067.0,86066.0,0.0750215]
[1741457267585,0.1972,86067.0,86065.0,0.1059]
[1741457267780,0.1972,86067.0,86066.0,0.1918779]
[1741457268888,0.1972,86067.0,86066.0,0.0989]
[1741457269102,0.1972,86067.0,86066.0,0.1918779]
[1741457269280,0.1972,86067.0,86066.0,0.0989]
[1741457269681,0.1972,86067.0,86066.0,0.1918779]
[1741457270192,0.1012,86067.0,86066.0,0.1918779]
[1741457270585,0.1034,86077.0,86066.0,0.0408718]
[1741457270890,0.0961,86076.0,86069.0,0.0929738]
[1741457271191,0.0961,86076.0,86071.0,0.0929721]
[1741457271376,0.0961,86076.0,86072.0,0.0929714]
[1741457271579,0.0961,86076.0,86074.0,0.0929686]
[1741457271779,0.0961,86076.0,86073.0,0.0981]
[1741457271975,0.0961,86076.0,86075.0,0.0929682]
[1741457272596,0.1045,86087.0,86073.0,0.0981]
[1741457272888,0.0961,86086.0,86077.0,0.09198122]
[1741457273080,0.0961,86086.0,86078.0,0.0929648]
[1741457273281,0.0961,86086.0,86079.0,0.0929637]
[1741457273493,0.0961,86086.0,86079.0,0.1859274]
[1741457273693,0.0961,86086.0,86077.0,0.09198122]
[1741457273878,0.1021,86085.0,86079.0,0.092963]
[1741457274077,0.1021,86085.0,86078.0,0.0973]
[1741457274277,0.0968,86084.0,86080.0,0.092962]
[1741457274487,0.0968,86084.0,86081.0,0.0973]
[1741457274682,0.0968,86084.0,86083.0,0.0929595]
[1741457275082,0.0968,86084.0,86083.0,0.1902595]
[1741457276790,0.0968,86084.0,86083.0,0.0973]
[1741457276986,0.0968,86084.0,86083.0,0.1902595]
[1741457277186,0.0968,86084.0,86083.0,0.5510595]
[1741457278289,0.0968,86084.0,86083.0,0.5520595]
[1741457279083,0.0968,86084.0,86083.0,0.0983]
[1741457279788,0.0968,86084.0,86083.0,0.04034444]
[1741457280186,0.0968,86084.0,86083.0,0.001]
[1741457280583,0.1897585,86084.0,86083.0,0.001]
[1741457280787,0.2468,86084.0,86057.0,0.87003914]
[1741457280995,0.0929693,86074.0,86058.0,0.0929865]
[1741457281291,0.0929693,86074.0,86062.0,0.40556883]
[1741457281483,0.6037693,86074.0,86073.0,0.04952282]
[1741457281882,0.76147186,86074.0,86073.0,0.04952282]
[1741457282087,0.0929747,86069.0,86062.0,0.40556883]
[1741457282492,0.0929747,86069.0,86063.0,0.0464902]
[1741457282697,0.0929747,86069.0,86068.0,0.313726]
[1741457282899,0.193174,86070.0,86069.0,0.0929747]
[1741457283094,0.192174,86070.0,86069.0,0.1932747]
[1741457283689,0.0992,86070.0,86069.0,0.1932747]
[1741457285698,0.1921736,86070.0,86069.0,0.1003]
[1741457285902,0.1921736,86070.0,86069.0,0.04234444]
[1741457288906,0.0992,86070.0,86066.0,0.08628888]
[1741457289104,0.0929768,86067.0,86066.0,0.08628888]
[1741457289906,0.0991,86069.0,86066.0,0.17926648]
[1741457290198,0.0991,86069.0,86067.0,0.1031]
[1741457290403,0.0929757,86068.0,86067.0,0.1031]
[1741457290808,0.1920757,86068.0,86067.0,0.1031]
[1741457291802,0.1920757,86068.0,86067.0,0.04514444]
[1741457292005,0.1920757,86068.0,86067.0,0.14474444]
[1741457293698,0.0991,86068.0,86067.0,0.14474444]
[1741457294601,0.1920757,86068.0,86067.0,0.04514444]
[1741457294908,0.1920757,86068.0,86063.0,0.08778888]
[1741457295109,0.0929833,86061.0,86060.0,0.0001743]
[1741457295900,0.1993833,86061.0,86060.0,0.0001743]
[1741457296501,0.1993833,86061.0,86060.0,0.05918598]
[1741457297912,0.1993833,86061.0,86060.0,0.00123042]
[1741457298210,0.0464922,86060.0,86055.0,0.2031]
[1741457298406,0.0464922,86060.0,86055.0,0.25980331]
[1741457298705,0.0929873,86058.0,86055.0,0.35279221]
[1741457298906,0.0965,86057.0,86055.0,0.35279221]
[1741457299121,0.0965,86057.0,86056.0,0.10961949]
[1741457299505,0.0965,86057.0,86056.0,0.30801949]
[1741457300910,0.0965,86057.0,86056.0,0.21503079]
[1741457301406,0.0965,86057.0,86056.0,0.30801949]
[1741457301713,0.0965,86057.0,86056.0,0.30790055]
[1741457302106,0.0965,86057.0,86056.0,0.21491185]
[1741457302313,0.1894876,86057.0,86056.0,0.21491185]
[1741457302614,0.0965,86057.0,86056.0,0.30790055]
[1741457303003,0.0965,86057.0,86056.0,0.3079135]
[1741457303203,0.0965,86057.0,86056.0,0.2913887]
[1741457303904,0.0965,86057.0,86056.0,0.23343314]
[1741457304209,0.0965,86057.0,86056.0,0.23443314]
[1741457304410,0.4537789,86066.0,86059.0,0.0929845]
[1741457304708,0.0929801,86064.0,86060.0,0.2016]
[1741457305109,0.1044,86063.0,86060.0,0.2016]
[1741457305312,0.1973813,86063.0,86060.0,0.2016]
[1741457306106,0.1044,86063.0,86060.0,0.2016]
[1741457306507,0.1044,86063.0,86061.0,0.0929831]
[1741457307113,0.1044,86063.0,86062.0,0.04034444]
[1741457307411,0.1044,86063.0,86062.0,0.13854444]
[1741457309921,0.2033,86063.0,86062.0,0.13854444]
[1741457310120,0.2033,86063.0,86062.0,0.08058888]
[1741457311631,0.2033,86063.0,86062.0,0.17357108]
[1741457311821,0.2033,86063.0,86062.0,0.08058888]
[1741457312626,0.2033,86063.0,86062.0,0.17357108]
[1741457313119,0.2033,86063.0,86062.0,0.02263332]
[1741457313516,0.2033,86063.0,86062.0,0.11561552]
[1741457314117,0.2033,86063.0,86062.0,0.21441552]
[1741457316129,0.2033,86063.0,86062.0,0.15645996]
[1741457319125,0.2033,86063.0,86062.0,0.0985044]
[1741457319319,0.2033,86063.0,86062.0,0.1914866]
[1741457320330,0.2033,86063.0,86062.0,0.2966866]
[1741457321229,0.2033,86063.0,86062.0,0.31140326]
[1741457322025,0.2033,86063.0,86062.0,0.2966866]
[1741457322330,0.2033,86063.0,86062.0,0.23873104]
[1741457323024,0.2033,86063.0,86062.0,0.24073104]
[1741457323631,0.2033,86063.0,86062.0,0.23973104]
[1741457324028,0.2033,86063.0,86062.0,0.001]
[1741457324621,0.2033,86063.0,86062.0,0.004]
[1741457325224,0.2033,86063.0,86055.0,0.44790775]
[1741457325525,0.0929841,86061.0,86055.0,0.44790775]
[1741457325727,0.2114,86060.0,86055.0,0.44790775]
[1741457325931,0.0929867,86058.0,86055.0,0.44790775]
[1741457326127,0.3121,86057.0,86055.0,0.44790775]
[1741457326432,0.3121,86057.0,86055.0,0.00374775]
[1741457326433,0.0929887,86056.0,86055.0,0.00374775]
[1741457326629,0.1954887,86056.0,86055.0,0.00374775]
[1741457326830,0.3014887,86056.0,86055.0,0.00374775]
[1741457328236,0.3014887,86056.0,86053.0,0.72795219]
[1741457328420,0.3014887,86056.0,86053.0,0.72727219]
[1741457329027,0.3024887,86056.0,86053.0,0.77574846]
[1741457329429,0.2095,86056.0,86055.0,0.0929898]
[1741457329627,0.2095,86056.0,86054.0,0.0929907]
[1741457329834,0.2105,86056.0,86054.0,0.0929907]
[1741457330436,0.2105,86056.0,86053.0,0.82292436]
[1741457330437,0.2105,86056.0,86055.0,0.0929898]
[1741457331033,0.16594475,86056.0,86055.0,0.0929898]
[1741457331228,0.16594475,86056.0,86055.0,0.03503424]
[1741457331430,0.16594475,86056.0,86054.0,0.1001]
[1741457332233,0.16594475,86056.0,86055.0,0.0929898]
[1741457332633,0.16494475,86056.0,86055.0,0.0929898]
[1741457334232,0.16394475,86056.0,86055.0,0.0929898]
[1741457334431,0.16394475,86056.0,86054.0,0.1001]
[1741457334936,0.16394475,86056.0,86055.0,0.0929898]
[1741457335137,0.13084466,86056.0,86055.0,0.0929898]
[1741457337338,0.13084466,86056.0,86055.0,0.03503424]
[1741457337644,0.13084466,86056.0,86054.0,0.1001]
[1741457337940,0.13084466,86056.0,86055.0,0.0929898]
[1741457338736,0.13084466,86056.0,86054.0,0.1001]
[1741457339241,0.13084466,86056.0,86055.0,0.0929898]
[1741457340430,0.13084466,86056.0,86054.0,0.1001]
[1741457340840,0.13084466,86056.0,86055.0,0.0929898]
[1741457341835,0.13084466,86056.0,86055.0,0.1980898]
[1741457343044,0.13084466,86056.0,86055.0,0.1990898]
[1741457343437,0.13084466,86056.0,86055.0,0.1061]
[1741457343640,0.13084466,86056.0,86055.0,0.1990898]
[1741457346241,0.3608,86084.0,86058.0,0.046493]
[1741457346452,0.1017,86070.0,86066.0,0.0929771]
[1741457346742,0.1017,86070.0,86067.0,0.3084]
[1741457346940,0.1017,86070.0,86067.0,0.3548884]
[1741457347145,0.1017,86070.0,86067.0,0.3084]
[1741457347545,0.1017,86070.0,86069.0,0.0929747]
[1741457348046,0.1017,86070.0,86067.0,0.3084]
[1741457348346,0.1017,86070.0,86065.0,0.27768055]
[1741457348543,0.0929761,86068.0,86065.0,0.27768055]
[1741457348853,0.301977,86067.0,86065.0,0.27768055]
[1741457349046,0.0929779,86066.0,86065.0,0.27768055]
[1741457349541,0.3026779,86066.0,86065.0,0.21972499]
[1741457350240,0.2097,86066.0,86065.0,0.31270399]
[1741457350745,0.2097,86066.0,86065.0,0.21972499]
[1741457350942,0.3026779,86066.0,86065.0,0.21972499]
[1741457351948,0.3026779,86066.0,86056.0,0.09192488]
[1741457351949,0.0929876,86057.0,86056.0,0.09192488]
[1741457352246,0.0929887,86056.0,86055.0,0.44008989]
[1741457352448,0.1991887,86056.0,86055.0,0.44008989]
[1741457352638,0.1991887,86056.0,86055.0,0.34710069]
[1741457353347,0.2146,86056.0,86055.0,0.44009049]
[1741457353739,0.3075887,86056.0,86055.0,0.44009049]
[1741457354446,0.3075887,86056.0,86055.0,0.34710069]
[1741457355335,0.3075887,86056.0,86055.0,0.45470069]
[1741457355536,0.2146,86056.0,86054.0,0.1003]
[1741457355743,0.1948898,86055.0,86054.0,0.1003]
[1741457356155,0.2943898,86055.0,86054.0,0.1003]
[1741457358042,0.2943898,86055.0,86054.0,0.1013]
[1741457358649,0.2943898,86055.0,86054.0,0.04334444]
[1741457358852,0.2943898,86055.0,86054.0,0.14244444]
[1741457361648,0.2943898,86055.0,86054.0,0.08448888]
[1741457363442,0.2014,86055.0,86054.0,0.08448888]
[1741457364750,0.2014,86055.0,86054.0,0.02653332]
[1741457364947,0.2014,86055.0,86054.0,0.12683332]
[1741457365144,0.2014,86055.0,86054.0,0.12783332]
[1741457365352,0.2014,86055.0,86054.0,0.12883332]
[1741457366351,0.2014,86055.0,86054.0,0.002]
[1741457367652,0.2014,86055.0,86053.0,0.09242071]
[1741457367853,0.2014,86055.0,86053.0,0.24041957]
[1741457368858,0.2014,86055.0,86053.0,0.24241957]
[1741457369651,0.2014,86055.0,86053.0,0.33541127]
[1741457370857,0.2014,86055.0,86053.0,0.24299056]
[1741457371568,0.2014,86055.0,86053.0,0.05179886]
[1741457372357,0.2014,86055.0,86054.0,0.0929909]
[1741457373148,0.2076313,86055.0,86054.0,0.0929909]
[1741457373763,0.2076313,86055.0,86053.0,0.15639886]
[1741457374165,0.2014,86055.0,86054.0,0.0929909]
[1741457374359,0.2014,86055.0,86054.0,0.0939909]
[1741457374558,0.2014,86055.0,86054.0,0.1981909]
[1741457374865,0.20763352,86055.0,86054.0,0.1981909]
[1741457375063,0.20763352,86055.0,86054.0,0.1042]
[1741457376970,0.20763352,86055.0,86053.0,0.05079886]
[1741457377364,0.00523352,86054.0,86053.0,0.14279026]
[1741457377758,0.21263352,86054.0,86053.0,0.14279026]
[1741457378466,0.21263352,86054.0,86053.0,0.20559026]
[1741457379367,0.21263352,86054.0,86053.0,0.11259886]
[1741457379562,0.21263352,86054.0,86053.0,0.11359886]
[1741457379761,0.21263352,86054.0,86053.0,0.05079886]
[1741457379962,0.21263352,86054.0,86052.0,0.09444566]
[1741457380270,0.0929919,86053.0,86052.0,0.05859029]
[1741457380467,0.0929919,86053.0,86048.0,0.0001743]
[1741457380661,0.4537963,86049.0,86048.0,0.0001743]
[1741457381166,0.4537963,86049.0,86048.0,0.04897733]
[1741457381363,0.46421302,86049.0,86048.0,0.0228052]
[1741457381563,0.0930017,86044.0,86043.0,0.78224]
[1741457381766,0.0930017,86044.0,86043.0,0.78148]
[1741457382268,0.2951017,86044.0,86043.0,0.78148]
[1741457382664,0.2941017,86044.0,86043.0,0.78148]
[1741457382867,0.2931017,86044.0,86043.0,0.72352444]
[1741457383163,0.2931017,86044.0,86043.0,0.78185777]
[1741457383559,0.4006017,86044.0,86043.0,0.78185777]
[1741457383959,0.4006017,86044.0,86043.0,0.05833333]
[1741457384165,0.4006017,86044.0,86039.0,0.09192488]
[1741457384368,0.093006,86040.0,86039.0,0.09192488]
[1741457385063,0.093006,86040.0,86037.0,0.00174316]
[1741457385259,0.4538082,86038.0,86037.0,0.00174316]
[1741457385753,0.6598082,86038.0,86037.0,0.00174316]
[1741457385958,0.6598082,86038.0,86037.0,0.00070767]
[1741457386154,0.6598082,86038.0,86035.0,0.0001743]
[1741457386155,0.0930103,86036.0,86035.0,0.0001743]
[1741457386559,0.3608,86036.0,86035.0,0.0001743]
[1741457386759,0.4538103,86036.0,86035.0,0.0001743]
[1741457387266,0.0930103,86036.0,86035.0,0.0001743]
[1741457387667,0.206,86038.0,86035.0,0.0001743]
[1741457388061,0.2990083,86038.0,86035.0,0.0001743]
[1741457388565,0.2990083,86038.0,86035.0,0.1207743]
[1741457388763,0.206,86038.0,86036.0,0.0930098]
[1741457388967,0.206,86038.0,86035.0,0.18025918]
[1741457389184,0.206,86038.0,86036.0,0.0930095]
[1741457389364,0.206,86038.0,86035.0,0.27327038]
[1741457389565,0.206,86038.0,86035.0,0.27427038]
[1741457390256,0.206,86038.0,86036.0,0.0930102]
[1741457390664,0.206,86038.0,86037.0,0.1155]
[1741457391170,0.206,86038.0,86037.0,0.2085092]
[1741457391670,0.1260433,86038.0,86037.0,0.2085092]
[1741457392064,0.1260433,86038.0,86037.0,0.15055364]
[1741457393263,0.1260433,86038.0,86037.0,0.15255364]
[1741457394165,0.1260433,86038.0,86037.0,0.15355364]
[1741457394866,0.0992,86055.0,86037.0,0.06054444]
[1741457395060,0.0992,86055.0,86045.0,0.03396932]
[1741457395264,0.0929915,86054.0,86048.0,0.0929963]
[1741457395462,0.0992,86055.0,86049.0,0.0524]
[1741457395662,0.0992,86055.0,86049.0,0.1453956]
[1741457395868,0.0992,86055.0,86049.0,0.0524]
[1741457396070,0.0929921,86053.0,86049.0,0.0524]
[1741457396368,0.0929936,86052.0,86049.0,0.1532]
[1741457396972,0.0929917,86054.0,86049.0,0.0524]
[1741457397664,0.0929917,86054.0,86049.0,0.1532]
[1741457397872,0.0992,86055.0,86049.0,0.1532]
[1741457398071,0.2969923,86053.0,86047.0,0.0929983]
[1741457398261,0.204,86053.0,86047.0,0.0929983]
[1741457398466,0.2969926,86053.0,86047.0,0.0929983]
[1741457398668,0.204,86053.0,86047.0,0.0929983]
[1741457398867,0.0929937,86052.0,86047.0,0.0929983]
[1741457399270,0.208,86051.0,86047.0,0.0929983]
[1741457399471,0.3009945,86051.0,86046.0,0.1036]
[1741457400164,0.0929956,86050.0,86046.0,0.1036]
[1741457400674,0.0929984,86047.0,86046.0,0.1036]
[1741457401170,0.0929984,86047.0,86044.0,0.08308]
[1741457401371,0.305,86046.0,86045.0,0.0930006]
[1741457401570,0.208,86046.0,86045.0,0.0930006]
[1741457401772,0.208,86046.0,86045.0,0.1882006]
[1741457402570,0.208,86046.0,86045.0,0.0952]
[1741457403076,0.208,86046.0,86045.0,0.1882006]
[1741457404072,0.208,86046.0,86045.0,0.13024504]
[1741457404272,0.2191,86080.0,86045.0,0.1066]
[1741457404583,0.00154305,86115.0,86060.0,0.0929839]
[1741457404584,0.105,86065.0,86060.0,0.0929839]
[1741457404875,0.0929806,86064.0,86061.0,0.1066]
[1741457405276,0.0929806,86064.0,86058.0,0.0929862]
[1741457405782,0.0929806,86064.0,86058.0,0.1859721]
[1741457406078,0.0929806,86064.0,86059.0,0.092985]
[1741457406276,0.0929806,86064.0,86059.0,0.102]
[1741457406472,0.0929812,86063.0,86058.0,0.0929859]
[1741457406982,0.105,86065.0,86058.0,0.0929859]
[1741457407183,0.1979795,86065.0,86058.0,0.0929859]
[1741457407479,0.1019,86061.0,86059.0,0.1949853]
[1741457408270,0.1019,86061.0,86059.0,0.102]
[1741457409272,0.08887,86061.0,86060.0,0.0929844]
[1741457409875,0.08887,86061.0,86060.0,0.1904844]
[1741457410478,0.19457,86061.0,86060.0,0.1904844]
[1741457412283,0.19557,86061.0,86060.0,0.1904844]
[1741457413174,0.19557,86061.0,86060.0,0.13252884]
[1741457416284,0.19557,86061.0,86060.0,0.07457328]
[1741457416877,0.0929845,86060.0,86052.0,0.18491708]
[1741457417185,0.2968,86059.0,86054.0,0.083]
[1741457417377,0.2968,86059.0,86047.0,0.0929982]
[1741457417575,0.0929899,86055.0,86051.0,0.4439743]
[1741457417784,0.0929899,86055.0,86051.0,0.79107499]
[1741457417785,0.0999,86054.0,86051.0,0.79107499]
[1741457418179,0.1928911,86054.0,86051.0,0.79107499]
[1741457418380,0.1928911,86054.0,86051.0,0.70807499]
[1741457418688,0.092993,86052.0,86051.0,0.34727499]
[1741457419283,0.0999,86054.0,86051.0,0.28931943]
[1741457419482,0.0999,86054.0,86052.0,0.092993]
[1741457420185,0.0999,86054.0,86051.0,0.28931943]
[1741457420785,0.0929924,86053.0,86050.0,0.20811732]
[1741457421178,0.0981,86052.0,86050.0,0.20811732]
[1741457421581,0.0981,86052.0,86050.0,0.30111182]
[1741457421782,0.0981,86052.0,86050.0,0.20811732]
[1741457422289,0.0981,86052.0,86050.0,0.15016176]
[1741457422683,0.0981,86052.0,86050.0,0.15116176]
[1741457422884,0.0981,86052.0,86050.0,0.15216176]
[1741457424099,0.0981,86052.0,86051.0,0.0929941]
[1741457425089,0.0981,86052.0,86050.0,0.24515676]
[1741457425291,0.1007,86051.0,86050.0,0.24515696]
[1741457425490,0.0981,86052.0,86051.0,0.0929941]
[1741457425690,0.0981,86052.0,86051.0,0.3056941]
[1741457427695,0.0981,86052.0,86051.0,0.3066941]
[1741457428091,0.3608,86059.0,86051.0,0.3066941]
[1741457428298,0.0929731,86071.0,86064.0,0.0929801]
[1741457428492,0.1038,86068.0,86065.0,0.04354444]
[1741457428889,0.0998,86067.0,86065.0,0.04354444]
[1741457429997,0.0999,86066.0,86064.0,0.0991]
[1741457430295,0.0999,86066.0,86065.0,0.092979]
[1741457430492,0.0999,86066.0,86065.0,0.196779]
[1741457431794,0.0999,86066.0,86065.0,0.297679]
[1741457432189,0.0999,86066.0,86065.0,0.298679]
[1741457432992,0.0999,86066.0,86065.0,0.300679]
[1741457433591,0.10605734,86066.0,86065.0,0.300679]
[1741457434394,0.10605734,86066.0,86065.0,0.24272344]
[1741457434598,0.10605734,86066.0,86065.0,0.24172344]
[1741457434792,0.10605734,86066.0,86065.0,0.24272344]
[1741457435195,0.07611734,86066.0,86065.0,0.24272344]
[1741457436498,0.1038,86082.0,86078.0,0.0929641]
[1741457436700,0.1038,86082.0,86079.0,0.0929638]
[1741457437602,0.0001743,86089.0,86086.0,0.0929555]
[1741457437804,0.1061,86088.0,86086.0,0.0929555]
[1741457438106,0.1061,86088.0,86084.0,0.0929578]
[1741457438799,0.1061,86088.0,86085.0,0.0929565]
[1741457439200,0.1061,86088.0,86087.0,0.0929552]
[1741457439398,0.0001743,86089.0,86088.0,0.0929541]
[1741457440400,0.0001743,86089.0,86088.0,0.1922541]
[1741457440599,0.0001743,86089.0,86088.0,0.0993]
[1741457440897,0.0001743,86089.0,86088.0,0.1922541]
[1741457443105,0.0984,86097.0,86088.0,0.0993]
[1741457443300,0.0984,86097.0,86090.0,0.092951]
[1741457443500,0.0984,86097.0,86090.0,0.03499544]
[1741457443700,0.0984,86097.0,86092.0,0.0929492]
[1741457444202,0.0984,86097.0,86093.0,0.0929485]
[1741457444410,0.0992,86096.0,86094.0,0.0929473]
[1741457444611,0.0992,86096.0,86093.0,0.0929485]
[1741457444811,0.0998,86095.0,86093.0,0.0929485]
[1741457445198,0.0992,86094.0,86093.0,0.0929485]
[1741457445399,0.0992,86094.0,86088.0,0.1041]